Workbook

Sheet LHV HHV
D2: Fuel | F2: =_xll.alera("TX0218FUEL06",E4,E6,E9,E10,E11,E13,E14,E15,E16) -> Link | G2: as rec. | M2: Comb. | O2: =_xll.alera("TX0218COMB02",N6,N16,N18,N19,N20,N22,N21,,,,,,,,,M25,M26) -> Link
D3: F00010005 | G3: IN WET
D4: H2O | E4: 8.16 | F4: % | G4: =E4 -> 8.16 | M4: Heat | N4: 0.3722240639 | O4: =_xll.aleraTX("TX0554TXCOMBX1") -> MW net
M5: Exit gas | N5: 1186.896053 | O5: °C
D6: LCV | E6: 13.288384 | F6: =_xll.aleraTX("TX0550TXFUELBX") -> MJ/kg | O6: 13.288384
D7: G 6 | E7: 14.73212861 | F7: MJ/kg | J7: Nm3/h H2O | K7: =N7*N12/100 -> 87.7279602 | M7: gas | N7: 647.0080965 | O7: Nm3/h
D8: dry | J8: kg/h H2O | K8: =K7*0.804 -> 70.53328 | N8: 829.8212241 | O8: kg/h
D9: C | E9: 40.72299652 | F9: % | G9: =E9*(100-$E$4)/100 -> 37.4 | J9: kg H2O / kg Fuel | K9: =K8/N21 -> 0.7053328 | N9: Vol(wet) %
D10: H | E10: 7.600174216 | F10: % | G10: =E10*(100-$E$4)/100 -> 6.98 | M10: N2 | N10: 69.66364367
D11: N | E11: 0.4355400697 | F11: % | G11: =E11*(100-$E$4)/100 -> 0.4 | M11: CO2 | N11: 10.71591343
D12: O | E12: 44.00043554 | F12: % | G12: 40.41 | M12: H2O | N12: 13.55902046
D13: S | E13: 0.1088850174 | F13: % | G13: 0.1 | M13: O2 | N13: 6.050868568
D14: ash | E14: 7.131968641 | F14: % | G14: 6.55 | M14: SO2 | N14: 0.01055386287
D15: Cl | E15: 0 | F15: % | G15: 0 | M15: HCl | N15: 0
D16: F | E16: 0 | F16: % | G16: 0 | M16: O2 (dry) | N16: 7 | O16: %
D17: O/C | E17: 1.080481283 | F17: (mass) | M17: Air | N17: 569.957901 | O17: Nm3/h
D18: H/C | E18: 0.186631016 | F18: (mass) | M18: base | N18: 15 | O18: °C
M19: heated | N19: 15 | O19: °C
G20: =SUM(G4:G19) -> 100 | K20: atomic mass | M20: H2O | N20: 0 | O20: g/kg
B21: HHV 1 | J21: H | K21: 1.00784 | M21: Fuel | N21: 100 | O21: kg/h
B22: HHV = LHV +µ(H2O) * 2,4425 [MJ/kg] | F22: H2O from fuel moisture | G22: =E4/100 -> 0.0816 | H22: kg/kg fuel | J22: O | K22: 15.9994 | M22: Loss | N22: 0 | O22: %
B23: µ(H2O) kg H2O / kg Fuel in Flue Gas | F23: H2O from H2 | G23: =G10*K24/100 -> 0.6238354223 | H23: kg/kg fuel | K23: =2*K21+K22 -> 18.01508
B24: resulting from H2 and H2O in Fuel | F24: Total | G24: =G22+G23 -> 0.7054354223 | H24: kg/kg fuel | J24: H to H2O | K24: =K23/(2*K21) -> 8.937470233 | N24: Link to R - Gas
N25: Extra gas
C26: kg H2O in Flue / kg Fuel | G26: Error | M26: =F2 -> Link | N26: Link to Fuel
B27: Elementary Analysis of Fuel | C27: =G24 -> 0.7054354223 | D27: =E7+C27*2.4425 -> 16.45515463 | E27: HHV [MJ/kg]
B28: aleraSoft Excel AddIn | C28: =K9 -> 0.7053328 | D28: =E7+C28*2.4425 -> 16.45490397 | E28: HHV [MJ/kg]
B29: Internet | D29: =E7+(0.212*G10+0.0245*G4+0.008*G12) -> 16.73508861 | E29: HHV [MJ/kg] | G29: =(D29-D28)/D28 -> 0.01702742456
B31: Internet HHV 2
B32: HHV = LHV +(0,212*H+0,0245*H2O+0,008 *O)
B33: https://www.cement-co2-protocol.org/en/Content/Internet_Manual/tasks/lower_and_higher_heating_values.htm
